[Event "*** Titled Tuesday Blitz"]
[Site "Chess.com"]
[Date "2020.11.10"]
[Round "8"]
[White "SanchezKelvin"]
[Black "IwkooO"]
[Result "0-1"]
[WhiteElo "2451"]
[BlackElo "2627"]
[TimeControl "180+1"]
[EndTime "11:34:26 PST"]
[Termination "IwkooO won on time"]

1. d4 {[%clk 0:03:00.9]} 1... Nf6 {[%clk 0:02:59.7]} 2. c4 {[%clk 0:02:51]} 2...
e6 {[%clk 0:02:59.9]} 3. Nf3 {[%clk 0:02:51]} 3... b6 {[%clk 0:02:56.2]} 4. g3
{[%clk 0:02:50.5]} 4... Bb7 {[%clk 0:02:55]} 5. Bg2 {[%clk 0:02:50.1]} 5... Bb4+
{[%clk 0:02:55.6]} 6. Nbd2 {[%clk 0:02:48.9]} 6... O-O {[%clk 0:02:53.4]} 7. O-O
{[%clk 0:02:48.3]} 7... Bxd2 {[%clk 0:02:54]} 8. Bxd2 {[%clk 0:02:47.4]} 8... d6
{[%clk 0:02:53.2]} 9. Bc3 {[%clk 0:02:44.7]} 9... Nbd7 {[%clk 0:02:51.6]} 10.
Rc1 {[%clk 0:02:42.5]} 10... Ne4 {[%clk 0:02:51.7]} 11. Qd3 {[%clk 0:02:37.9]}
11... Nxc3 {[%clk 0:02:30.1]} 12. Rxc3 {[%clk 0:02:30.3]} 12... f5 {[%clk
0:02:30.2]} 13. b4 {[%clk 0:02:08.1]} 13... Qe7 {[%clk 0:02:16.7]} 14. c5 {[%clk
0:02:01.9]} 14... Be4 {[%clk 0:02:01]} 15. Qd2 {[%clk 0:01:45.1]} 15... Nf6
{[%clk 0:01:55.6]} 16. cxd6 {[%clk 0:01:38.4]} 16... cxd6 {[%clk 0:01:55.6]} 17.
Rfc1 {[%clk 0:01:37.8]} 17... Rad8 {[%clk 0:01:34]} 18. a3 {[%clk 0:01:22.6]}
18... Rd7 {[%clk 0:01:25.8]} 19. Bf1 {[%clk 0:01:10]} 19... Bd5 {[%clk
0:01:19.8]} 20. Qc2 {[%clk 0:01:01.3]} 20... Be4 {[%clk 0:01:19.2]} 21. Qa4
{[%clk 0:00:57.1]} 21... f4 {[%clk 0:01:11.1]} 22. Bh3 {[%clk 0:00:30]} 22...
Bd5 {[%clk 0:01:02.5]} 23. Qc2 {[%clk 0:00:23.3]} 23... Be4 {[%clk 0:00:37.7]}
24. Qb3 {[%clk 0:00:22.3]} 24... Bb7 {[%clk 0:00:33.2]} 25. Qxe6+ {[%clk
0:00:20.5]} 25... Kh8 {[%clk 0:00:32]} 26. Qxe7 {[%clk 0:00:19.5]} 26... Rxe7
{[%clk 0:00:32.9]} 27. Rc7 {[%clk 0:00:17.3]} 27... Rxc7 {[%clk 0:00:25.8]} 28.
Rxc7 {[%clk 0:00:16.4]} 28... Ba6 {[%clk 0:00:26.7]} 29. e3 {[%clk 0:00:15]}
29... fxe3 {[%clk 0:00:25.8]} 30. fxe3 {[%clk 0:00:15.1]} 30... Nd5 {[%clk
0:00:26]} 31. Rxa7 {[%clk 0:00:12.5]} 31... Bd3 {[%clk 0:00:24.8]} 32. Bg2
{[%clk 0:00:11.2]} 32... Nxe3 {[%clk 0:00:24.7]} 33. Ne1 {[%clk 0:00:11.1]}
33... Bc4 {[%clk 0:00:20.9]} 34. Ra8 {[%clk 0:00:10.5]} 34... Rxa8 {[%clk
0:00:19.5]} 35. Bxa8 {[%clk 0:00:11.4]} 35... b5 {[%clk 0:00:19.7]} 36. Kf2
{[%clk 0:00:11.3]} 36... Nf5 {[%clk 0:00:19.7]} 37. Nf3 {[%clk 0:00:10.3]} 37...
Kg8 {[%clk 0:00:18.3]} 38. Be4 {[%clk 0:00:10]} 38... Ne7 {[%clk 0:00:18.5]} 39.
Nd2 {[%clk 0:00:09.7]} 39... d5 {[%clk 0:00:17.2]} 40. Bc2 {[%clk 0:00:09.9]}
40... Kf7 {[%clk 0:00:17.4]} 41. Bb3 {[%clk 0:00:08.6]} 41... Ke6 {[%clk
0:00:17.3]} 42. Bc2 {[%clk 0:00:08]} 42... h6 {[%clk 0:00:16.9]} 43. Nf3 {[%clk
0:00:07.6]} 43... Nc6 {[%clk 0:00:15]} 44. Ke3 {[%clk 0:00:07.7]} 44... Kd6
{[%clk 0:00:15.3]} 45. Ne1 {[%clk 0:00:07.1]} 45... Ne7 {[%clk 0:00:13.4]} 46.
Nf3 {[%clk 0:00:06.3]} 46... Nc6 {[%clk 0:00:12.9]} 47. Bd3 {[%clk 0:00:06.8]}
47... Ne7 {[%clk 0:00:12.9]} 48. Ne5 {[%clk 0:00:06.4]} 48... Ke6 {[%clk
0:00:11.9]} 49. Be2 {[%clk 0:00:05.6]} 49... Nf5+ {[%clk 0:00:11.8]} 50. Kd2
{[%clk 0:00:05.4]} 50... Nxd4 {[%clk 0:00:12.2]} 51. Bxc4 {[%clk 0:00:04.4]}
51... dxc4 {[%clk 0:00:12]} 52. Ng4 {[%clk 0:00:03.4]} 52... Nf3+ {[%clk
0:00:12.2]} 53. Kc3 {[%clk 0:00:02.9]} 53... h5 {[%clk 0:00:12.2]} 54. Nf2
{[%clk 0:00:01.6]} 54... Nxh2 {[%clk 0:00:11.6]} 55. Nh3 {[%clk 0:00:01.9]}
55... Kf5 {[%clk 0:00:06.9]} 0-1

[Event "*** Titled Tuesday Blitz"]
[Site "Chess.com"]
[Date "2020.11.10"]
[Round "8"]
[White "kamilianin235"]
[Black "PetrolulSah"]
[Result "1/2-1/2"]
[WhiteElo "2192"]
[BlackElo "2235"]
[TimeControl "180+1"]
[EndTime "11:34:26 PST"]
[Termination "Game drawn by repetition"]

1. e4 {[%clk 0:03:00.9]} 1... e5 {[%clk 0:02:59.5]} 2. Nf3 {[%clk 0:03:00.8]}
2... Nc6 {[%clk 0:02:57.3]} 3. Bc4 {[%clk 0:03:00.8]} 3... Bc5 {[%clk
0:02:56.4]} 4. c3 {[%clk 0:03:00.4]} 4... Nf6 {[%clk 0:02:56.3]} 5. d3 {[%clk
0:02:57.6]} 5... O-O {[%clk 0:02:55.8]} 6. Nbd2 {[%clk 0:02:54.9]} 6... d6
{[%clk 0:02:54.5]} 7. a4 {[%clk 0:02:53.6]} 7... a6 {[%clk 0:02:53.4]} 8. Nf1
{[%clk 0:02:51.8]} 8... Bg4 {[%clk 0:02:52.7]} 9. Ng3 {[%clk 0:02:48.2]} 9...
Nh5 {[%clk 0:02:50.3]} 10. a5 {[%clk 0:02:20.4]} 10... Qf6 {[%clk 0:02:48.1]}
11. Bg5 {[%clk 0:01:54.2]} 11... Bxf3 {[%clk 0:02:26.8]} 12. Qxf3 {[%clk
0:01:28.7]} 12... Qxf3 {[%clk 0:02:24.3]} 13. gxf3 {[%clk 0:01:27.2]} 13... Nf4
{[%clk 0:02:20.9]} 14. Bxf4 {[%clk 0:01:22.5]} 14... exf4 {[%clk 0:02:20.5]} 15.
Nf5 {[%clk 0:01:21.9]} 15... Ne5 {[%clk 0:02:15]} 16. Ke2 {[%clk 0:01:10.8]}
16... Nxc4 {[%clk 0:02:14.1]} 17. dxc4 {[%clk 0:01:09.6]} 17... g6 {[%clk
0:02:11.9]} 18. Ne7+ {[%clk 0:01:07.2]} 18... Kg7 {[%clk 0:02:10.8]} 19. Nd5
{[%clk 0:01:05.6]} 19... Rac8 {[%clk 0:01:39]} 20. Nxf4 {[%clk 0:00:57.5]} 20...
Rfe8 {[%clk 0:01:39.1]} 21. Nd3 {[%clk 0:00:54.3]} 21... f5 {[%clk 0:01:37.5]}
22. Nxc5 {[%clk 0:00:52.9]} 22... dxc5 {[%clk 0:01:37.4]} 23. Ke3 {[%clk
0:00:52]} 23... Re7 {[%clk 0:01:32.6]} 24. Rhe1 {[%clk 0:00:41.7]} 24... Rce8
{[%clk 0:01:30.2]} 25. Kf4 {[%clk 0:00:40.3]} 25... Kf6 {[%clk 0:01:08]} 26.
Rad1 {[%clk 0:00:36.1]} 26... g5+ {[%clk 0:01:06]} 27. Kg3 {[%clk 0:00:31.1]}
27... fxe4 {[%clk 0:01:06.1]} 28. fxe4 {[%clk 0:00:30.1]} 28... Rxe4 {[%clk
0:01:05.7]} 29. Rxe4 {[%clk 0:00:29.1]} 29... Rxe4 {[%clk 0:01:05.6]} 30. Rd2
{[%clk 0:00:28.6]} 30... Ke6 {[%clk 0:00:48.3]} 31. Kf3 {[%clk 0:00:25.7]} 31...
Rxc4 {[%clk 0:00:47.6]} 32. Rd8 {[%clk 0:00:20.1]} 32... Ra4 {[%clk 0:00:34.3]}
33. Rb8 {[%clk 0:00:17]} 33... Rxa5 {[%clk 0:00:33.7]} 34. Rxb7 {[%clk
0:00:17.1]} 34... Rb5 {[%clk 0:00:33.6]} 35. Rxc7 {[%clk 0:00:15.8]} 35... h6
{[%clk 0:00:29.6]} 36. Rc6+ {[%clk 0:00:14.2]} 36... Kf5 {[%clk 0:00:29.6]} 37.
Rxh6 {[%clk 0:00:14]} 37... Rxb2 {[%clk 0:00:28.8]} 38. Rxa6 {[%clk 0:00:14.1]}
38... Rb3 {[%clk 0:00:29.1]} 39. Rc6 {[%clk 0:00:12.9]} 39... Rxc3+ {[%clk
0:00:29.3]} 40. Ke2 {[%clk 0:00:12.7]} 40... Ke4 {[%clk 0:00:27.1]} 41. Rg6
{[%clk 0:00:09.5]} 41... Rc2+ {[%clk 0:00:25.6]} 42. Kf1 {[%clk 0:00:09.2]}
42... Kf5 {[%clk 0:00:24.9]} 43. Rc6 {[%clk 0:00:08.6]} 43... c4 {[%clk
0:00:23.2]} 44. Rc5+ {[%clk 0:00:08.8]} 44... Kf4 {[%clk 0:00:23]} 45. Kg2
{[%clk 0:00:08.9]} 45... g4 {[%clk 0:00:22.5]} 46. Rc8 {[%clk 0:00:07.2]} 46...
c3 {[%clk 0:00:21.8]} 47. Rc6 {[%clk 0:00:06.9]} 47... Rc1 {[%clk 0:00:17.7]}
48. Rc7 {[%clk 0:00:07]} 48... c2 {[%clk 0:00:17.1]} 49. Rc8 {[%clk 0:00:07.3]}
49... Ke5 {[%clk 0:00:17.4]} 50. Rc4 {[%clk 0:00:06.6]} 50... Kd5 {[%clk
0:00:17.2]} 51. Rc8 {[%clk 0:00:06.3]} 51... Kd6 {[%clk 0:00:17]} 52. Rc4 {[%clk
0:00:05.7]} 52... Kd5 {[%clk 0:00:17.3]} 53. Rc8 {[%clk 0:00:05.1]} 53... Kd4
{[%clk 0:00:17.6]} 54. Rc6 {[%clk 0:00:04.7]} 54... Kd3 {[%clk 0:00:17.7]} 55.
Rd6+ {[%clk 0:00:04.5]} 55... Kc4 {[%clk 0:00:17.8]} 56. Rc6+ {[%clk 0:00:04.8]}
56... Kd5 {[%clk 0:00:18]} 57. Rc8 {[%clk 0:00:05.1]} 1/2-1/2

[Event "*** Titled Tuesday Blitz"]
[Site "Chess.com"]
[Date "2020.11.10"]
[Round "8"]
[White "midedu"]
[Black "LubovMarkelova"]
[Result "1-0"]
[WhiteElo "2088"]
[BlackElo "2205"]
[TimeControl "180+1"]
[EndTime "11:34:27 PST"]
[Termination "midedu won by checkmate"]

1. e4 {[%clk 0:03:00.9]} 1... e6 {[%clk 0:02:22.9]} 2. d3 {[%clk 0:03:00]} 2...
d5 {[%clk 0:02:23.1]} 3. Nd2 {[%clk 0:02:59.3]} 3... c5 {[%clk 0:02:24]} 4. Ngf3
{[%clk 0:02:58.9]} 4... Nc6 {[%clk 0:02:24.3]} 5. g3 {[%clk 0:02:58.2]} 5... Bd6
{[%clk 0:02:24.7]} 6. Bg2 {[%clk 0:02:57.8]} 6... Nge7 {[%clk 0:02:25.3]} 7. O-O
{[%clk 0:02:57.5]} 7... O-O {[%clk 0:02:25.4]} 8. Re1 {[%clk 0:02:56.3]} 8...
Qc7 {[%clk 0:02:26]} 9. Nf1 {[%clk 0:02:55.6]} 9... d4 {[%clk 0:02:24.8]} 10. h4
{[%clk 0:02:43.1]} 10... e5 {[%clk 0:02:24.7]} 11. N1h2 {[%clk 0:02:42.4]} 11...
Be6 {[%clk 0:02:20.9]} 12. c4 {[%clk 0:02:39.5]} 12... dxc3 {[%clk 0:02:19.4]}
13. bxc3 {[%clk 0:02:39]} 13... f6 {[%clk 0:02:20]} 14. Be3 {[%clk 0:02:28.1]}
14... b5 {[%clk 0:02:19.5]} 15. Qd2 {[%clk 0:02:21.8]} 15... a5 {[%clk
0:02:14.8]} 16. d4 {[%clk 0:02:20.6]} 16... cxd4 {[%clk 0:02:10.6]} 17. cxd4
{[%clk 0:02:20.3]} 17... exd4 {[%clk 0:02:10.9]} 18. Nxd4 {[%clk 0:02:19.6]}
18... Nxd4 {[%clk 0:02:11]} 19. Bxd4 {[%clk 0:02:06.6]} 19... Rfd8 {[%clk
0:01:58.9]} 20. Rac1 {[%clk 0:02:04.1]} 20... Qd7 {[%clk 0:01:58.6]} 21. Bb6
{[%clk 0:02:00.3]} 21... Bxg3 {[%clk 0:01:47.8]} 22. Qxd7 {[%clk 0:01:59.4]}
22... Bxh2+ {[%clk 0:01:47.6]} 23. Kxh2 {[%clk 0:01:59.4]} 23... Rxd7 {[%clk
0:01:48]} 24. e5 {[%clk 0:01:57.3]} 24... Nd5 {[%clk 0:01:29.9]} 25. exf6 {[%clk
0:01:52.1]} 25... Rb8 {[%clk 0:01:12.6]} 26. Bxa5 {[%clk 0:01:46.8]} 26... Bg4
{[%clk 0:00:55.6]} 27. fxg7 {[%clk 0:01:44]} 27... Kxg7 {[%clk 0:00:56.3]} 28.
Rg1 {[%clk 0:01:27.9]} 28... h5 {[%clk 0:00:32.3]} 29. Bxd5 {[%clk 0:01:18.9]}
29... Rxd5 {[%clk 0:00:32.4]} 30. f3 {[%clk 0:01:19.1]} 30... b4 {[%clk
0:00:31.7]} 31. Bc7 {[%clk 0:01:12.9]} 31... Rd2+ {[%clk 0:00:30.6]} 32. Kh1
{[%clk 0:01:12.2]} 32... Re8 {[%clk 0:00:24.7]} 33. fxg4 {[%clk 0:01:12.1]}
33... Ree2 {[%clk 0:00:24.5]} 34. gxh5+ {[%clk 0:01:09.2]} 34... Kh7 {[%clk
0:00:24.7]} 35. Rc4 {[%clk 0:00:59.6]} 35... Rd3 {[%clk 0:00:21.7]} 36. Rg2
{[%clk 0:00:54.6]} 36... Rh3+ {[%clk 0:00:16.1]} 37. Kg1 {[%clk 0:00:54.2]}
37... Re1+ {[%clk 0:00:15.5]} 38. Kf2 {[%clk 0:00:54.1]} 38... Rhe3 {[%clk
0:00:15.7]} 39. Bf4 {[%clk 0:00:36.1]} 39... R1e2+ {[%clk 0:00:14.4]} 40. Kg1
{[%clk 0:00:35.9]} 40... Re1+ {[%clk 0:00:13.7]} 41. Kh2 {[%clk 0:00:35.8]}
41... Re6 {[%clk 0:00:10.9]} 42. Rxb4 {[%clk 0:00:32.7]} 42... R1e4 {[%clk
0:00:08.7]} 43. Rb7+ {[%clk 0:00:15.1]} 43... Re7 {[%clk 0:00:05.4]} 44. Rxe7+
{[%clk 0:00:14.3]} 44... Rxe7 {[%clk 0:00:06.3]} 45. Bg5 {[%clk 0:00:11]} 45...
Re4 {[%clk 0:00:04.6]} 46. Rb2 {[%clk 0:00:09.7]} 46... Ra4 {[%clk 0:00:03.9]}
47. Kg3 {[%clk 0:00:09.9]} 47... Ra3+ {[%clk 0:00:02.8]} 48. Kg4 {[%clk
0:00:09]} 48... Ra5 {[%clk 0:00:03.7]} 49. Bf4 {[%clk 0:00:08.6]} 49... Kg7
{[%clk 0:00:02.8]} 50. h6+ {[%clk 0:00:08.6]} 50... Kh7 {[%clk 0:00:02.9]} 51.
Rb7+ {[%clk 0:00:07]} 51... Kh8 {[%clk 0:00:02.9]} 52. h5 {[%clk 0:00:06.2]}
52... Ra4 {[%clk 0:00:02.7]} 53. Kf5 {[%clk 0:00:05.3]} 53... Ra5+ {[%clk
0:00:03.1]} 54. Be5+ {[%clk 0:00:05.4]} 54... Kg8 {[%clk 0:00:02.7]} 55. h7+
{[%clk 0:00:05.3]} 55... Kf8 {[%clk 0:00:02.6]} 56. h8=Q# {[%clk 0:00:05.2]} 1-0

[Event "*** Titled Tuesday Blitz"]
[Site "Chess.com"]
[Date "2020.11.10"]
[Round "8"]
[White "ljuks68"]
[Black "Iskusnyh"]
[Result "0-1"]
[WhiteElo "2380"]
[BlackElo "2562"]
[TimeControl "180+1"]
[EndTime "11:34:40 PST"]
[Termination "Iskusnyh won on time"]

1. e4 {[%clk 0:03:00.9]} 1... e6 {[%clk 0:02:59.9]} 2. d4 {[%clk 0:03:00.1]}
2... d5 {[%clk 0:03:00.4]} 3. Nc3 {[%clk 0:03:00.7]} 3... Nf6 {[%clk 0:03:00.3]}
4. Bg5 {[%clk 0:02:59.5]} 4... dxe4 {[%clk 0:02:58.8]} 5. Nxe4 {[%clk
0:02:59.1]} 5... Nbd7 {[%clk 0:02:59.4]} 6. Nf3 {[%clk 0:02:57.7]} 6... h6
{[%clk 0:02:59.6]} 7. Nxf6+ {[%clk 0:02:57.1]} 7... Nxf6 {[%clk 0:03:00.5]} 8.
Be3 {[%clk 0:02:57.3]} 8... Bd6 {[%clk 0:02:59.9]} 9. Bd3 {[%clk 0:02:56.5]}
9... b6 {[%clk 0:02:58.8]} 10. Qd2 {[%clk 0:02:55.9]} 10... Bb7 {[%clk
0:02:55.7]} 11. c4 {[%clk 0:02:55.2]} 11... Ne4 {[%clk 0:02:35.5]} 12. Qc2
{[%clk 0:02:51.2]} 12... Ng5 {[%clk 0:02:22.6]} 13. Nxg5 {[%clk 0:02:44.4]}
13... hxg5 {[%clk 0:02:22]} 14. O-O-O {[%clk 0:02:39.5]} 14... Qf6 {[%clk
0:02:14.4]} 15. Qa4+ {[%clk 0:02:19.8]} 15... Kf8 {[%clk 0:01:55.4]} 16. c5
{[%clk 0:02:15.8]} 16... bxc5 {[%clk 0:01:47.4]} 17. dxc5 {[%clk 0:02:15.5]}
17... Be5 {[%clk 0:01:47.2]} 18. c6 {[%clk 0:02:15.2]} 18... Bc8 {[%clk
0:01:42.6]} 19. Qb4+ {[%clk 0:02:02.2]} 19... Kg8 {[%clk 0:01:34.3]} 20. Rd2
{[%clk 0:01:44.1]} 20... a5 {[%clk 0:01:30.3]} 21. Qg4 {[%clk 0:01:42.5]} 21...
Rb8 {[%clk 0:01:26.1]} 22. b3 {[%clk 0:01:27.7]} 22... Bf4 {[%clk 0:01:23.9]}
23. Kc2 {[%clk 0:01:13]} 23... e5 {[%clk 0:01:17.8]} 24. Qf3 {[%clk 0:01:12.2]}
24... g4 {[%clk 0:01:08.9]} 25. Qe2 {[%clk 0:01:10.4]} 25... Qxc6+ {[%clk
0:01:07.2]} 26. Kb1 {[%clk 0:01:04.2]} 26... Be6 {[%clk 0:01:05.9]} 27. Bxf4
{[%clk 0:01:00.6]} 27... exf4 {[%clk 0:01:05.3]} 28. Rhd1 {[%clk 0:00:46.7]}
28... g5 {[%clk 0:00:49.2]} 29. Qe5 {[%clk 0:00:40.9]} 29... Rh5 {[%clk
0:00:39.3]} 30. Be4 {[%clk 0:00:20.5]} 30... Qe8 {[%clk 0:00:33.6]} 31. Qxc7
{[%clk 0:00:17.9]} 31... Bxb3 {[%clk 0:00:30]} 32. axb3 {[%clk 0:00:12.9]} 32...
Qxe4+ {[%clk 0:00:29]} 33. Ka2 {[%clk 0:00:13]} 33... Rf8 {[%clk 0:00:28.2]} 34.
Rd8 {[%clk 0:00:08.1]} 34... Rxd8 {[%clk 0:00:25.2]} 35. Rxd8+ {[%clk
0:00:06.6]} 35... Kg7 {[%clk 0:00:25.3]} 36. Qc3+ {[%clk 0:00:06.3]} 36... f6
{[%clk 0:00:17.7]} 37. Qc7+ {[%clk 0:00:05.1]} 37... Kg6 {[%clk 0:00:18.2]} 38.
Rg8+ {[%clk 0:00:04.9]} 38... Kf5 {[%clk 0:00:18.7]} 39. Qc8+ {[%clk 0:00:03.6]}
39... Qe6 {[%clk 0:00:18.2]} 40. Qc2+ {[%clk 0:00:03.1]} 40... Qe4 {[%clk
0:00:18.2]} 41. Qc8+ {[%clk 0:00:01.7]} 41... Qe6 {[%clk 0:00:17.8]} 42. Qc2+
{[%clk 0:00:02]} 42... Ke5 {[%clk 0:00:18]} 43. Rc8 {[%clk 0:00:02.3]} 43...
Rxh2 {[%clk 0:00:13]} 44. Rc5+ {[%clk 0:00:02.4]} 44... Kd6 {[%clk 0:00:09.7]}
45. Rc6+ {[%clk 0:00:02.5]} 45... Ke7 {[%clk 0:00:09.9]} 46. Rxe6+ {[%clk
0:00:02.7]} 46... Kxe6 {[%clk 0:00:10.1]} 47. Qc5 {[%clk 0:00:03.1]} 47... Kf7
{[%clk 0:00:09.7]} 48. Qxa5 {[%clk 0:00:02.8]} 48... Kg7 {[%clk 0:00:07.8]} 49.
Qd5 {[%clk 0:00:03]} 49... f3 {[%clk 0:00:07.7]} 50. gxf3 {[%clk 0:00:02.4]}
50... Rxf2+ {[%clk 0:00:07.6]} 51. Ka3 {[%clk 0:00:02.7]} 51... Rxf3 {[%clk
0:00:07.7]} 52. Ka4 {[%clk 0:00:03.1]} 52... Kg6 {[%clk 0:00:07.6]} 53. Qe4+
{[%clk 0:00:02.6]} 53... f5 {[%clk 0:00:07.5]} 54. Qe6+ {[%clk 0:00:02.6]} 54...
Kh5 {[%clk 0:00:07.6]} 55. Qe8+ {[%clk 0:00:01.5]} 55... Kh4 {[%clk 0:00:07.3]}
56. Qe1+ {[%clk 0:00:01.9]} 56... g3 {[%clk 0:00:07]} 57. b4 {[%clk 0:00:02.3]}
57... Rf4 {[%clk 0:00:06.6]} 58. Ka5 {[%clk 0:00:02.5]} 58... Re4 {[%clk
0:00:07]} 59. Qh1+ {[%clk 0:00:01.4]} 59... Kg4 {[%clk 0:00:07]} 60. b5 {[%clk
0:00:01.6]} 60... Re2 {[%clk 0:00:07]} 0-1

[Event "*** Titled Tuesday Blitz"]
[Site "Chess.com"]
[Date "2020.11.10"]
[Round "8"]
[White "swisspower96"]
[Black "Kotofeyca"]
[Result "1-0"]
[WhiteElo "2553"]
[BlackElo "2372"]
[TimeControl "180+1"]
[EndTime "11:34:42 PST"]
[Termination "swisspower96 won on time"]

1. b3 {[%clk 0:03:00.9]} 1... d5 {[%clk 0:02:59.6]} 2. Bb2 {[%clk 0:03:00.7]}
2... Bg4 {[%clk 0:03:00.1]} 3. f3 {[%clk 0:02:51.9]} 3... Bh5 {[%clk 0:03:00.1]}
4. Nh3 {[%clk 0:02:49.9]} 4... f6 {[%clk 0:02:58]} 5. d4 {[%clk 0:02:46]} 5...
e6 {[%clk 0:02:56.3]} 6. Nf4 {[%clk 0:02:43.7]} 6... Bf7 {[%clk 0:02:56.1]} 7.
e4 {[%clk 0:02:39]} 7... Bd6 {[%clk 0:02:52.2]} 8. e5 {[%clk 0:02:33.7]} 8...
fxe5 {[%clk 0:02:07.5]} 9. dxe5 {[%clk 0:02:33.3]} 9... Bb4+ {[%clk 0:02:06.9]}
10. Nd2 {[%clk 0:02:28.5]} 10... Ne7 {[%clk 0:00:54.9]} 11. Nd3 {[%clk
0:02:26.8]} 11... Ba5 {[%clk 0:00:52.1]} 12. Be2 {[%clk 0:02:13]} 12... Bg6
{[%clk 0:00:51.8]} 13. Nf4 {[%clk 0:02:11.5]} 13... Qd7 {[%clk 0:00:45.6]} 14.
O-O {[%clk 0:02:07.6]} 14... O-O {[%clk 0:00:45]} 15. Nxg6 {[%clk 0:02:05.6]}
15... Nxg6 {[%clk 0:00:44.9]} 16. g3 {[%clk 0:02:04.3]} 16... c5 {[%clk
0:00:30.2]} 17. f4 {[%clk 0:01:59.3]} 17... Nc6 {[%clk 0:00:29.6]} 18. c4 {[%clk
0:01:41.3]} 18... Rad8 {[%clk 0:00:22]} 19. cxd5 {[%clk 0:00:50.8]} 19... Qxd5
{[%clk 0:00:20.9]} 20. Nc4 {[%clk 0:00:50.9]} 20... Qxd1 {[%clk 0:00:19.8]} 21.
Rfxd1 {[%clk 0:00:48.9]} 21... Bc7 {[%clk 0:00:20]} 22. Bg4 {[%clk 0:00:39.1]}
22... Rfe8 {[%clk 0:00:18.3]} 23. a4 {[%clk 0:00:33]} 23... Kf7 {[%clk
0:00:17.4]} 24. Bf3 {[%clk 0:00:29.9]} 24... Nge7 {[%clk 0:00:16.3]} 25. a5
{[%clk 0:00:25.2]} 25... Rxd1+ {[%clk 0:00:14.6]} 26. Rxd1 {[%clk 0:00:24.8]}
26... Rd8 {[%clk 0:00:15.5]} 27. Rxd8 {[%clk 0:00:23.8]} 27... Nxd8 {[%clk
0:00:15.9]} 28. Kf2 {[%clk 0:00:21.2]} 28... Nec6 {[%clk 0:00:16]} 29. Bc3
{[%clk 0:00:21.2]} 29... Ke7 {[%clk 0:00:14.4]} 30. Ke3 {[%clk 0:00:21.7]} 30...
Kd7 {[%clk 0:00:14.5]} 31. Be4 {[%clk 0:00:22.1]} 31... g6 {[%clk 0:00:14]} 32.
h4 {[%clk 0:00:22.1]} 32... Nb4 {[%clk 0:00:14]} 33. h5 {[%clk 0:00:21.7]} 33...
Nd5+ {[%clk 0:00:12.4]} 34. Kd3 {[%clk 0:00:20.6]} 34... Nxc3 {[%clk 0:00:11.8]}
35. Kxc3 {[%clk 0:00:21.5]} 35... gxh5 {[%clk 0:00:11.2]} 36. Bxh7 {[%clk
0:00:20.9]} 36... Nc6 {[%clk 0:00:09.8]} 37. Bg6 {[%clk 0:00:20.1]} 37... Nd4
{[%clk 0:00:10.2]} 38. Bxh5 {[%clk 0:00:18.7]} 38... b5 {[%clk 0:00:10]} 39.
axb6 {[%clk 0:00:18.3]} 39... axb6 {[%clk 0:00:10.9]} 40. Bd1 {[%clk 0:00:18.2]}
40... b5 {[%clk 0:00:11]} 41. Ne3 {[%clk 0:00:18.6]} 41... Nf5 {[%clk
0:00:08.3]} 42. Nxf5 {[%clk 0:00:16.7]} 42... exf5 {[%clk 0:00:09.2]} 43. Be2
{[%clk 0:00:17.2]} 43... b4+ {[%clk 0:00:08.3]} 44. Kc4 {[%clk 0:00:17.4]} 44...
Bb6 {[%clk 0:00:08.9]} 45. Kd5 {[%clk 0:00:17.6]} 45... Ke7 {[%clk 0:00:08.5]}
46. Bd3 {[%clk 0:00:17.8]} 46... c4 {[%clk 0:00:08.4]} 47. Kxc4 {[%clk
0:00:17.6]} 47... Bf2 {[%clk 0:00:08.6]} 48. g4 {[%clk 0:00:14.5]} 48... fxg4
{[%clk 0:00:07.6]} 49. f5 {[%clk 0:00:15]} 49... g3 {[%clk 0:00:07.6]} 50. Be4
{[%clk 0:00:14.9]} 50... Be1 {[%clk 0:00:06.7]} 51. Kd5 {[%clk 0:00:14.9]} 51...
Bc3 {[%clk 0:00:06.4]} 52. Bg2 {[%clk 0:00:11.6]} 52... Bb2 {[%clk 0:00:05.7]}
53. Ke4 {[%clk 0:00:11.9]} 53... Kf7 {[%clk 0:00:05.2]} 54. Kf4 {[%clk 0:00:11]}
54... Ke7 {[%clk 0:00:05.2]} 55. Bd5 {[%clk 0:00:11.1]} 55... Bc3 {[%clk
0:00:03.5]} 56. f6+ {[%clk 0:00:11.5]} 56... Kd7 {[%clk 0:00:02.4]} 57. Kf5
{[%clk 0:00:10.6]} 57... Bd4 {[%clk 0:00:02.2]} 58. e6+ {[%clk 0:00:10.4]} 58...
Kd6 {[%clk 0:00:02.1]} 59. e7 {[%clk 0:00:08.6]} 59... Kd7 {[%clk 0:00:02.2]}
60. Bc6+ {[%clk 0:00:08.1]} 60... Kxc6 {[%clk 0:00:01.7]} 61. e8=Q+ {[%clk
0:00:08.2]} 61... Kd5 {[%clk 0:00:02.6]} 62. Qe4+ {[%clk 0:00:08.4]} 62... Kc5
{[%clk 0:00:03.4]} 63. f7 {[%clk 0:00:08.4]} 63... Bf2 {[%clk 0:00:03.9]} 64.
f8=Q+ {[%clk 0:00:08.1]} 1-0